bitfinex/quotes_ETHUSD_20251021
["timestamp","ask_amount","ask_price","bid_price","bid_amount"]
[1761026536493,13.99281336,3871.6,3871.5,0.002]
[1761026537388,14.39804751,3871.6,3871.5,0.002]
[1761026539609,14.28174751,3871.6,3871.5,0.002]
[1761026541928,14.28074751,3871.6,3871.5,0.002]
[1761026542296,7.90995606,3871.6,3871.5,0.4691]
[1761026542631,13.77386751,3871.6,3871.5,0.4691]
[1761026544834,7.9971456,3871.6,3871.5,0.4691]
[1761026545834,8.40229379,3871.6,3871.5,0.4691]
[1761026546032,7.9971456,3871.6,3871.5,0.4691]
[1761026548406,7.59191145,3871.6,3871.5,0.4691]
[1761026552113,7.59191145,3871.6,3871.5,0.002]
[1761026554624,4.31091145,3871.6,3871.5,0.002]
[1761026554833,7.59091145,3871.6,3871.5,0.4647]
[1761026555117,7.59091145,3871.6,3871.5,0.002]
[1761026560653,8.19679145,3871.6,3871.5,0.002]
[1761026560868,4.81785817,3871.5,3871.4,0.002]
[1761026561163,4.94273875,3871.5,3871.4,0.002]
[1761026563338,4.31117834,3871.2,3871.1,0.002]
[1761026563682,3.09032528,3870.8,3870.3,0.002]
[1761026563830,3.09059227,3870.4,3870.3,0.002]
[1761026564154,4.31251359,3869.2,3869.1,0.4627]
[1761026564363,7.61839417,3869.2,3869.1,0.4627]
[1761026564532,7.61839417,3869.2,3868.6,0.2151]
[1761026564533,5.008,3869.2,3868.6,0.2151]
[1761026564735,2.58475635,3868.9,3868.6,0.6778]
[1761026564925,3.30588058,3868.8,3868.6,0.6778]
[1761026565127,3.30588058,3868.8,3868.7,0.4627]
[1761026565358,5.89066139,3868.8,3868.7,0.4627]
[1761026565656,3.28,3868.8,3868.7,0.4627]
[1761026565860,3.30588058,3868.8,3868.7,0.4627]
[1761026566859,3.28,3868.8,3868.7,0.4627]
[1761026570133,3.30588058,3868.8,3868.7,0.4627]
[1761026570332,3.28,3868.8,3868.7,0.4627]
[1761026571935,3.30588058,3868.8,3868.7,0.4627]
[1761026572131,3.30588058,3868.8,3868.6,0.2151]
[1761026572331,0.1288,3868.7,3868.6,0.2151]
[1761026572771,0.1288,3868.7,3868.6,0.6778]
[1761026575265,0.15468058,3868.7,3868.6,0.6778]
[1761026575865,2.7395282,3868.7,3868.6,0.6778]
[1761026576073,0.15468058,3868.7,3868.6,0.6778]
[1761026576447,2.7395282,3868.7,3868.3,0.4627]
[1761026576644,0.1288,3868.4,3868.3,0.4627]
[1761026576844,3.4088,3868.4,3868.3,0.4627]
[1761026578266,3.4088,3868.4,3868.1,0.2179]
[1761026578442,3.4088,3868.4,3868.1,0.6806]
[1761026578638,3.4088,3868.4,3868.2,0.4627]
[1761026579776,3.4088,3868.4,3868.2,0.4647]
[1761026580273,0.02588058,3868.3,3868.2,0.4647]
[1761026581458,0.02588058,3868.3,3868.2,0.002]
[1761026581665,2.61099548,3868.3,3868.2,0.002]
[1761026582861,4.33899548,3868.3,3868.2,0.002]
[1761026583339,4.44069548,3868.3,3868.2,0.002]
[1761026583552,4.78499548,3868.3,3868.2,0.002]
[1761026584555,5.19049647,3868.3,3868.2,0.002]
[1761026584755,5.16461589,3868.3,3868.2,0.002]
[1761026585077,5.06291589,3868.3,3868.2,0.002]
[1761026585479,5.16461589,3868.3,3868.2,0.002]
[1761026586661,5.06291589,3868.3,3868.2,0.002]
[1761026589096,5.67149589,3868.3,3868.2,0.002]
[1761026589964,5.56979589,3868.3,3868.2,0.002]
[1761026590168,8.84979589,3868.3,3868.2,0.002]
[1761026591285,5.06291589,3868.3,3868.2,0.002]
[1761026591489,8.34291589,3868.3,3868.2,0.4726]
[1761026592088,8.34291589,3868.3,3868.2,0.002]
[1761026592666,8.34291589,3868.3,3868.2,0.4726]
[1761026593277,0.74980099,3868.3,3868.2,0.4726]
[1761026593480,3.28,3868.3,3868.2,0.4726]
[1761026593689,0.4726,3868.8,3868.2,0.4726]
[1761026593890,3.28,3868.7,3868.3,0.02585114]
[1761026594095,6.49835481,3869.5,3868.2,0.4726]
[1761026594300,0.4726,3869.5,3869.4,0.2214]
[1761026594598,2.5845887,3870.6,3869.4,0.692]
[1761026594802,4.03469811,3870.5,3869.5,0.02584313]
[1761026595006,0.001,3870.6,3870.5,0.2214]
[1761026595368,0.001,3870.6,3870.5,0.692]
[1761026596106,0.001,3870.6,3870.5,1.01958456]
[1761026596801,0.001,3870.6,3870.5,0.692]
[1761026599116,0.1298,3870.6,3870.5,0.692]
[1761026599900,0.001,3870.6,3870.5,0.692]
[1761026601615,0.001,3870.6,3870.5,0.2214]
[1761026601916,0.1298,3870.6,3870.5,0.4538]
[1761026602899,0.1298,3870.6,3870.3,0.2145]
[1761026604407,0.1298,3870.6,3870.3,0.6683]
[1761026604735,5.90889499,3870.6,3870.3,0.6683]
[1761026604904,5.90889499,3870.6,3870.4,0.4538]
[1761026605108,5.90889499,3870.6,3870.3,0.2145]
[1761026605325,0.02588058,3870.5,3870.3,0.2145]
[1761026605804,5.78009499,3870.6,3869.6,0.1288]
[1761026606027,5.77909499,3869.8,3869.7,0.4538]
[1761026606202,0.1288,3869.8,3869.7,0.4538]
[1761026606735,0.1288,3869.8,3869.4,0.2214]
[1761026606935,0.1288,3869.8,3869.4,0.6752]
[1761026607233,0.1288,3869.8,3869.5,0.4538]
[1761026607234,5.90789499,3869.8,3869.5,0.4538]
[1761026607723,0.1288,3869.8,3869.5,0.4538]
[1761026609731,0.15468058,3869.8,3869.5,0.4538]
[1761026609907,0.1288,3869.5,3869.4,0.2214]
[1761026610107,0.1288,3869.5,3869.4,0.6752]
[1761026610425,0.1288,3869.5,3869.0,0.6752]
[1761026610930,0.1288,3869.5,3869.1,0.4651]
[1761026611542,5.90789499,3869.5,3869.1,0.4651]
[1761026611844,0.1288,3869.1,3868.7,0.4651]
[1761026612136,0.1288,3869.1,3868.5,0.4651]
[1761026612434,0.02588058,3869.1,3868.5,0.4651]
[1761026612630,5.86254745,3869.2,3868.5,0.4651]
[1761026612631,0.1288,3868.7,3868.5,0.4651]
[1761026612854,0.1288,3868.7,3868.2,0.4671]
[1761026612999,2.58480582,3868.8,3868.2,0.002]
[1761026613000,0.1288,3868.4,3868.2,0.002]
[1761026614428,2.71385723,3868.4,3868.2,0.002]
[1761026614627,8.39009047,3868.3,3868.2,0.002]
[1761026614961,8.36420989,3868.3,3868.2,0.002]
[1761026615168,5.77909499,3868.3,3868.2,0.002]
[1761026615448,5.99186024,3868.4,3868.2,0.4671]
[1761026615449,3.4068,3868.4,3868.2,0.4671]
[1761026615653,0.02588058,3868.3,3868.2,0.4671]
[1761026615946,0.02588058,3868.3,3868.2,0.002]
[1761026616249,2.61099548,3868.3,3868.2,0.002]
[1761026616746,3.4068,3868.4,3868.2,0.2345]
[1761026617051,3.4068,3868.4,3868.2,0.6996]
[1761026617946,3.4068,3868.4,3868.2,0.2345]
[1761026619923,0.02588058,3868.3,3868.2,0.2345]
[1761026620626,0.02588058,3868.3,3868.2,0.002]
[1761026620627,2.61099548,3868.3,3868.2,0.002]
[1761026621554,8.39009047,3868.3,3868.2,0.002]
[1761026621859,5.77909499,3868.3,3868.2,0.002]
[1761026622055,8.36420989,3868.3,3868.2,0.002]
[1761026622759,10.19410989,3868.3,3868.2,0.002]
[1761026622963,10.09220989,3868.3,3868.2,0.002]
[1761026623528,10.19410989,3868.3,3868.2,0.002]
[1761026626149,10.09220989,3868.3,3868.2,0.002]
[1761026628163,13.37120989,3868.3,3868.2,0.002]
[1761026628364,13.77674699,3868.3,3868.2,0.002]
[1761026628575,13.47310989,3868.3,3868.2,0.002]
[1761026628781,13.37120989,3868.3,3868.2,0.002]
[1761026629788,10.78609499,3868.3,3868.2,0.002]
[1761026630189,13.37120989,3868.3,3868.2,0.002]
[1761026631584,13.77673479,3868.3,3868.2,0.002]
[1761026632182,13.87863479,3868.3,3868.2,0.002]
[1761026633985,14.38551479,3868.3,3868.2,0.002]
[1761026640007,14.79104537,3868.3,3868.2,0.002]
[1761026641205,4.31338224,3867.9,3867.8,0.002]
[1761026641414,3.09252964,3867.5,3867.4,0.002]
[1761026641569,13.90450521,3867.5,3867.4,0.002]
[1761026641775,13.98082463,3867.5,3867.4,0.002]
[1761026641976,14.38647621,3867.5,3867.4,0.002]
[1761026642175,13.98082463,3867.5,3867.4,0.002]
[1761026643698,14.26241376,3867.5,3867.4,0.002]
[1761026645189,14.66812206,3867.5,3867.4,0.002]
[1761026645631,14.38653293,3867.5,3867.4,0.002]
[1761026645799,2.58589557,3867.2,3866.2,0.2218]
[1761026645999,3.09290913,3867.0,3866.2,0.2218]
[1761026646203,5.77909499,3866.8,3866.6,0.4422]
[1761026646399,1.728,3866.6,3866.3,0.4422]
[1761026646599,7.62013206,3866.6,3866.0,0.2325]
[1761026646798,7.59425148,3866.6,3866.0,0.2325]
[1761026647897,7.69665148,3866.6,3865.9,0.4422]
[1761026648225,4.82113148,3866.6,3865.8,1.2]
[1761026648402,8.12701206,3866.6,3865.8,1.6422]
[1761026648718,8.10113148,3866.6,3865.8,1.6422]
[1761026649328,13.98262647,3866.6,3866.5,0.602]
[1761026649692,13.88022647,3866.6,3866.1,0.002]
[1761026649889,10.09361405,3866.2,3866.1,0.002]
[1761026650093,10.60049405,3866.2,3866.1,0.002]
[1761026650414,8.10139906,3866.2,3866.1,0.002]
[1761026650607,8.20379906,3866.2,3866.1,0.002]
[1761026650926,3.09359978,3865.9,3865.8,1.2]
[1761026651125,14.13187535,3865.9,3865.8,1.2]
[1761026651443,14.20499477,3865.9,3865.8,1.2]
[1761026652530,2.58730561,3865.1,3864.2,0.4422]
[1761026652718,5.77909499,3864.7,3864.2,0.4422]
[1761026653032,3.30788058,3864.6,3864.2,0.4422]
[1761026653198,1.728,3865.3,3864.3,0.32889621]
[1761026653530,5.77909499,3865.4,3864.3,0.32889621]
[1761026653531,7.50709499,3865.1,3864.4,0.4422]
[1761026653730,0.02588058,3865.0,3864.4,0.4422]
[1761026653916,3.283,3864.9,3864.4,0.4422]
[1761026654118,3.283,3864.9,3864.5,2.587608]
[1761026654335,3.283,3864.9,3864.6,0.59205816]
[1761026654636,3.284,3864.9,3864.7,2.58751904]
[1761026654929,3.284,3864.9,3864.7,0.4422]
[1761026655237,3.284,3865.1,3864.8,0.4422]
[1761026655533,0.40582892,3865.4,3864.8,0.4422]
[1761026655705,0.40582892,3865.4,3865.3,0.2218]
[1761026655906,3.284,3865.8,3865.3,0.664]
[1761026656139,3.284,3865.8,3865.4,3.35691384]
[1761026656307,0.1288,3865.6,3865.5,2.58698481]
[1761026656508,0.1288,3865.6,3865.5,3.02918481]
[1761026656935,0.1288,3865.6,3865.5,3.05505468]
[1761026657136,3.106,3866.0,3865.7,2.58684078]
[1761026657438,0.1288,3865.9,3865.8,3.14838925]
[1761026657736,0.122,3866.8,3865.8,0.56160256]
[1761026657934,0.122,3867.0,3866.5,2.58631266]
[1761026658137,0.122,3867.0,3866.6,0.02586251]
[1761026658436,0.122,3867.0,3866.9,0.2184]
[1761026658639,0.122,3867.0,3866.9,0.6758]
[1761026660133,0.122,3867.0,3866.6,0.2184]
[1761026660329,0.02588058,3866.9,3866.6,0.2184]
[1761026660532,0.02588058,3866.9,3866.7,0.4574]
[1761026660914,0.02588058,3866.9,3866.6,0.2184]
[1761026661633,0.02588058,3866.9,3866.6,0.6758]
[1761026663420,0.02588058,3866.9,3866.2,0.4574]
[1761026663613,0.02588058,3866.9,3866.4,0.2184]
[1761026664014,1.728,3867.4,3866.5,0.4574]
[1761026664228,1.728,3867.2,3866.5,0.4574]
[1761026664444,0.02588058,3867.1,3866.5,0.4574]
[1761026664745,1.728,3867.2,3867.1,0.2184]
[1761026665343,1.728,3867.2,3866.4,3.26217965]
[1761026665543,1.728,3867.2,3866.5,0.4574]
[1761026666921,0.001,3866.9,3866.5,0.4574]
[1761026667265,0.001,3866.9,3865.6,0.002]
[1761026667266,0.50688,3866.5,3865.6,0.002]
[1761026667420,2.58684128,3865.8,3865.6,0.002]
[1761026667765,5.06488058,3865.7,3865.6,0.002]
[1761026667961,5.039,3865.7,3865.6,0.002]
[1761026668615,5.039,3865.7,3865.6,0.4594]
[1761026670141,0.1285,3866.6,3865.6,0.4594]
[1761026670142,0.1288,3865.8,3865.6,0.4594]
[1761026672355,0.15468058,3865.8,3865.6,0.4594]
[1761026672855,0.1288,3865.8,3865.6,0.4594]
[1761026673051,0.02588058,3865.7,3865.6,0.4594]
[1761026673252,0.15468058,3865.8,3865.6,0.4594]
[1761026673678,0.1288,3865.8,3865.6,0.4594]
[1761026675676,0.1288,3865.8,3865.6,1.02274993]
[1761026675875,0.1288,3865.8,3865.6,3.04631578]
[1761026676076,0.1288,3865.8,3865.7,0.4377]
[1761026677784,0.1288,3865.8,3865.7,3.0245536]
[1761026678093,0.1288,3866.2,3865.7,0.4377]
[1761026678255,0.1288,3866.2,3865.8,3.02447044]
[1761026678454,0.1288,3866.2,3866.1,0.216]
[1761026678677,2.58672779,3865.9,3865.6,0.002]
[1761026678884,0.02588058,3865.8,3865.6,0.002]
[1761026679682,2.61268201,3865.8,3865.6,0.002]
[1761026679846,0.02588058,3865.8,3865.7,0.4377]
[1761026680050,0.02588058,3865.8,3865.6,0.002]
[1761026681090,0.02588058,3865.7,3865.6,0.002]
[1761026681468,3.313,3865.9,3865.6,0.4397]
[1761026684917,0.02588058,3865.8,3865.6,0.4397]
[1761026686289,0.02588058,3865.8,3865.6,0.002]
[1761026689612,0.40576354,3866.2,3865.7,3.0245536]
[1761026689812,0.53456354,3866.2,3865.8,0.30265536]
[1761026689979,0.53456354,3866.2,3866.1,0.216]
[1761026690411,0.53456354,3866.2,3866.1,0.6537]
[1761026691311,0.1288,3866.2,3866.1,0.6537]
[1761026691904,0.1288,3866.2,3865.6,0.1308]
[1761026692086,0.02588058,3866.3,3865.7,0.4377]
[1761026692287,0.1288,3866.0,3865.7,0.4377]
[1761026694120,0.1288,3866.0,3865.7,0.74036829]
[1761026694322,0.1288,3866.0,3865.8,3.02444138]
[1761026694687,0.1288,3866.0,3865.9,0.4377]
[1761026699622,3.31,3866.4,3865.9,0.4377]
[1761026699958,3.71271538,3866.6,3866.3,0.216]
[1761026700306,0.02588058,3866.5,3866.3,0.216]
[1761026701108,0.1288,3866.3,3866.1,0.6547]
[1761026701624,0.1288,3866.3,3866.2,0.4724]
[1761026703522,0.1288,3866.3,3865.6,0.1308]
[1761026703742,0.1288,3866.3,3865.8,2.58678319]
[1761026703949,0.1288,3866.3,3865.9,0.4724]
[1761026704411,0.1288,3866.3,3866.2,2.80351906]
[1761026704925,0.1288,3866.3,3866.2,0.6894]
[1761026707329,0.1288,3866.3,3866.1,2.58657389]
[1761026707330,0.1288,3866.3,3866.0,0.4724]
[1761026707519,0.1288,3866.3,3865.9,0.4724]
[1761026708333,0.1288,3866.3,3865.9,3.05906822]
[1761026708534,0.1288,3866.3,3865.6,0.6032]
[1761026708733,6.51541283,3866.1,3865.6,0.002]
[1761026708942,0.1288,3865.7,3865.6,0.002]
[1761026709756,0.1288,3865.7,3865.6,0.4744]
[1761026710052,3.4318,3866.0,3865.7,2.58684201]
[1761026710218,3.4318,3866.0,3865.6,3.06129608]
[1761026710424,3.4318,3866.0,3865.6,0.4744]
[1761026710653,3.4318,3866.0,3865.7,0.4724]
[1761026710821,0.1288,3866.0,3865.9,2.58671978]
[1761026711025,1.729,3866.6,3866.0,2.58660698]
[1761026711226,0.1288,3866.3,3865.8,0.4724]
[1761026711425,0.1288,3866.3,3866.0,2.58663912]
[1761026711626,0.1288,3866.3,3866.2,0.217]
[1761026711842,0.1288,3866.3,3866.2,2.80351906]
[1761026712054,0.1288,3866.3,3866.2,3.27591906]
[1761026712358,0.1288,3866.5,3866.4,2.58638526]
[1761026712524,0.001,3866.6,3866.5,2.58631837]
[1761026712722,0.001,3866.6,3866.5,4.01397191]
[1761026713263,0.001,3866.6,3866.5,1.40179036]
[1761026713447,0.001,3866.6,3866.5,3.05871837]
[1761026713945,0.001,3866.6,3866.5,3.08458155]
[1761026714821,0.001,3866.6,3866.5,3.21338155]
[1761026715056,0.001,3866.6,3866.5,3.18751837]
[1761026715856,0.001,3866.6,3866.5,3.21338155]
[1761026716158,1e-08,3867.0,3866.9,2.58605084]
[1761026716356,0.001,3867.3,3867.2,2.58585022]
[1761026716737,0.001,3867.3,3867.2,3.04545022]
[1761026717334,0.001,3867.3,3866.5,0.93198255]
[1761026717561,0.001,3867.3,3866.6,2.58624022]
[1761026717727,0.001,3867.3,3866.5,0.4596]
[1761026717928,0.001,3867.3,3866.7,2.58617182]
[1761026718259,0.001,3867.3,3866.5,0.4596]
[1761026718458,0.001,3867.3,3866.4,2.96]
[1761026718658,0.001,3867.3,3866.6,2.58618814]
[1761026719172,0.001,3867.3,3866.5,0.82413]
[1761026719173,0.02688058,3867.3,3866.5,0.36453]
[1761026719371,0.12618058,3867.3,3866.4,2.96]
[1761026719758,0.12618058,3867.3,3866.5,2.58631837]
[1761026719962,0.02688058,3867.3,3866.4,2.96]
[1761026720151,0.001,3867.3,3866.5,0.82413]
[1761026720466,0.001,3867.3,3866.8,2.58610327]
[1761026720661,0.001,3867.3,3866.6,0.4596]
[1761026720839,0.02688058,3867.3,3866.6,0.4596]
[1761026721041,0.02688058,3867.3,3866.0,3.27193928]
[1761026721042,0.0993,3867.2,3866.0,3.27193928]
[1761026721236,0.02588058,3867.1,3866.3,2.58643644]
[1761026721766,0.001,3867.3,3866.3,2.58643644]
[1761026721767,0.001,3867.3,3866.3,3.04603506]
[1761026722145,0.001,3867.3,3866.4,2.58634919]
[1761026722537,0.001,3867.3,3866.3,0.4596]
[1761026722734,0.001,3867.3,3866.3,3.04599135]
[1761026722935,0.12618058,3867.3,3866.1,3.64919393]
[1761026723264,0.12618058,3867.3,3866.3,2.58644135]
[1761026723265,1.728,3867.2,3866.3,2.58644135]
[1761026723467,0.02588058,3867.1,3866.3,2.58644135]
[1761026723658,0.12518058,3867.1,3866.1,5.9085343]
[1761026723863,0.001,3867.3,3866.2,0.4596]
[1761026724277,0.001,3867.3,3866.8,2.58606624]
[1761026724573,0.001,3867.3,3867.0,2.58597083]
[1761026724984,0.001,3867.3,3866.9,2.58604874]
[1761026725155,0.001,3867.3,3866.9,1.02278447]
[1761026725350,0.001,3867.3,3866.9,3.60878967]
[1761026725950,0.001,3867.3,3867.0,2.58597894]
[1761026726156,0.1288,3867.2,3866.9,3.14921282]
[1761026726586,0.1288,3867.2,3866.9,0.56318447]
[1761026726774,0.001,3867.3,3867.1,0.2257]
[1761026726973,0.001,3867.3,3867.2,2.58585022]
[1761026727170,0.001,3867.3,3867.1,0.6853]
[1761026727365,0.001,3867.3,3866.6,0.4596]
[1761026727568,0.1288,3867.2,3866.9,2.58604523]
[1761026727889,0.1288,3867.2,3866.6,0.5884]
[1761026727890,0.1288,3867.2,3866.7,2.58614569]
[1761026728091,0.1288,3867.2,3866.6,2.71499086]
[1761026728276,0.2281,3867.2,3866.6,0.1288]
[1761026728482,0.1288,3866.9,3866.5,2.58626508]
[1761026728672,0.1288,3866.9,3866.5,0.86235172]
[1761026728870,0.1288,3866.9,3866.5,3.44864703]
[1761026729068,0.2579,3866.9,3866.5,0.86235172]
[1761026729261,0.2579,3866.9,3866.3,0.1288]
[1761026729589,0.2579,3866.9,3866.5,2.58627074]
[1761026729791,0.1288,3866.9,3866.5,2.58627074]
[1761026730025,0.1288,3866.9,3866.4,2.5863601]
[1761026730191,0.1288,3866.9,3866.6,0.4596]
[1761026730387,0.1288,3866.9,3866.7,2.58617705]
[1761026730592,0.1288,3866.9,3866.6,2.90370779]
[1761026730792,0.1288,3866.9,3866.7,2.58617975]
[1761026731087,0.1288,3866.9,3866.7,0.4367]
[1761026731293,0.1288,3866.9,3866.6,0.31747601]
[1761026731892,0.1288,3866.9,3866.6,2.90372214]
[1761026732395,0.1288,3866.9,3866.7,2.58618443]
[1761026732971,0.1288,3866.9,3866.6,0.31747601]
[1761026733185,0.1288,3866.9,3866.3,0.1288]
[1761026733373,0.1288,3866.9,3866.4,2.58638526]
[1761026733579,0.1288,3866.9,3866.5,2.58627026]
[1761026733991,0.1288,3866.9,3866.3,0.1288]
[1761026734192,0.1288,3866.9,3866.8,2.58611772]
[1761026734703,0.001,3867.3,3866.9,2.58602176]
[1761026734874,0.1288,3867.1,3866.9,2.61188226]
[1761026735068,0.1288,3867.1,3866.9,3.0227389]
[1761026735577,0.001,3867.3,3864.2,0.77770677]
[1761026735578,0.001,3867.3,3867.0,0.4367]
[1761026735888,0.001,3867.3,3867.2,2.79995022]
[1761026736305,0.001,3867.3,3867.2,3.23665022]
[1761026736505,0.001,3867.3,3867.2,3.81891764]
[1761026737998,0.001,3867.3,3867.2,3.84477614]
[1761026739078,0.001,3867.3,3867.2,4.32579764]
[1761026741208,0.001,3867.3,3867.2,3.81891764]
[1761026742199,0.001,3867.3,3867.2,3.38221764]
[1761026742529,0.001,3867.3,3867.2,5.90585022]
[1761026742712,0.001,3867.3,3867.2,3.32]
[1761026743327,0.001,3867.3,3867.2,5.90585022]
[1761026744173,0.001,3867.3,3867.0,0.002]
[1761026744375,0.001,3867.3,3867.2,2.58585022]
[1761026745409,0.001,3867.3,3867.1,2.58586456]
[1761026745875,0.001,3867.3,3867.2,2.58585022]
[1761026746711,0.001,3867.3,3867.0,0.002]
[1761026747084,0.001,3867.3,3867.2,2.58585022]
[1761026748012,0.001,3867.3,3867.2,3.43523264]
[1761026749310,0.001,3867.3,3867.2,2.58585022]
[1761026749538,0.001,3867.3,3867.0,0.002]
[1761026750224,0.001,3867.3,3867.0,2.58791831]
[1761026750422,0.1,3867.3,3867.0,0.002]
[1761026750827,0.1288,3867.1,3867.0,0.002]
[1761026751840,0.2278,3867.1,3867.0,0.002]
[1761026752033,0.25368058,3867.1,3867.0,0.002]
[1761026753040,0.2278,3867.1,3867.0,0.002]
[1761026753828,4.41291709,3867.1,3867.0,0.002]
[1761026754033,4.94567767,3867.1,3867.0,0.002]
[1761026754244,5.02352736,3867.1,3867.0,0.002]
[1761026754610,5.02352736,3867.1,3866.6,0.002]
[1761026754611,3.0930646,3866.7,3866.6,0.002]
[1761026754811,24.85158252,3866.7,3866.6,0.002]
[1761026755076,24.92470194,3866.7,3866.6,0.002]
[1761026756705,2.5868536,3865.7,3864.5,0.2141]
[1761026756972,8.1417336,3865.7,3863.7,0.6508]
[1761026757257,4.82193437,3865.4,3863.2,2.58852121]
[1761026757414,4.94681495,3865.4,3863.2,2.58852121]
[1761026757609,4.94681495,3865.4,3862.9,0.6508]
[1761026757610,2.33388,3865.4,3862.9,0.6508]
[1761026757812,16.68463734,3864.5,3862.9,0.2141]
[1761026758053,1.728,3864.1,3862.9,0.2141]
[1761026758351,0.02588058,3864.0,3862.8,0.4367]
[1761026758645,2.1064,3863.9,3862.8,0.4367]
[1761026758946,3.34988058,3863.8,3862.8,0.4367]
[1761026759444,3.44888058,3863.8,3862.8,0.4367]
[1761026759651,0.099,3863.7,3862.8,0.73926922]
[1761026759851,0.02588058,3863.6,3862.8,3.32805184]
[1761026760146,0.02588058,3863.6,3862.8,0.73926922]
[1761026760353,3.324,3863.8,3863.2,2.58847632]
[1761026760541,3.324,3863.8,3863.1,2.5885836]
[1761026761045,3.324,3863.8,3862.9,3.0253634]
[1761026761249,0.02588058,3863.7,3862.9,3.02541892]
[1761026761614,0.02588058,3863.7,3863.0,2.58864657]
[1761026761849,0.02588058,3863.7,3863.1,2.58855535]
[1761026762030,0.02588058,3863.7,3863.2,2.58852496]
[1761026763051,3.324,3863.8,3863.2,2.58852496]
[1761026763538,3.324,3863.8,3863.3,2.5884561]
[1761026763871,3.324,3863.8,3863.2,2.58850903]
[1761026764149,0.1288,3863.2,3863.0,2.58866166]
[1761026764451,0.1288,3863.2,3863.1,2.58859465]
[1761026764841,0.1487,3864.2,3863.4,2.58833169]
[1761026765016,0.1288,3863.5,3863.2,3.04062764]
[1761026765215,0.1288,3863.5,3863.2,3.04060076]
[1761026765617,0.1288,3863.5,3863.3,2.58842484]
[1761026765844,0.1288,3863.5,3863.4,2.58839364]
[1761026766042,0.02588058,3863.9,3863.5,2.58827934]
[1761026766043,3.322,3863.9,3863.5,2.58827934]
[1761026766257,0.1492,3864.5,3863.5,0.4521]
[1761026766440,1.827,3864.2,3863.1,0.2331]
[1761026766615,0.02588058,3864.1,3862.8,0.4521]
[1761026766819,0.12488058,3864.1,3863.2,2.58850808]
[1761026767220,0.12488058,3864.1,3863.3,2.58844681]
[1761026767668,0.12488058,3864.1,3863.5,2.58829619]
[1761026767872,0.12488058,3864.1,3863.2,2.82161659]
[1761026767873,0.12488058,3864.1,3863.4,2.58839114]
[1761026768770,0.02588058,3864.1,3863.4,2.58839114]
[1761026768986,0.4059753,3864.3,3863.2,0.2331]
[1761026769161,0.8022,3864.5,3863.7,2.58815837]
[1761026769360,0.02588058,3864.4,3863.4,0.77830601]
[1761026769681,0.02588058,3864.4,3863.8,2.58806218]
[1761026770157,0.02588058,3864.4,3863.9,2.5880386]
[1761026770357,3.322,3864.3,3864.0,2.58799039]
[1761026770890,3.322,3864.3,3863.9,2.58804283]
[1761026771908,3.322,3864.3,3863.5,3.0403613]
[1761026772107,3.322,3864.3,3863.8,2.5881235]
[1761026772605,0.02588058,3864.5,3863.6,0.38186673]
[1761026772812,3.321,3864.3,3864.0,2.58798023]
[1761026773104,0.02588058,3864.9,3864.0,2.58794561]
[1761026773257,3.32,3864.8,3864.0,2.58794561]
[1761026773457,0.02588058,3864.7,3864.0,2.58794561]
[1761026773653,0.02588058,3864.7,3864.1,2.58791196]
[1761026773853,3.32,3864.8,3864.1,2.58791196]
[1761026774086,1.728,3864.7,3864.1,2.58791196]
[1761026774591,1.728,3864.7,3864.1,2.58792474]
[1761026774754,1.728,3864.5,3864.2,2.58781236]
[1761026774954,1.728,3864.5,3864.1,3.04000958]
[1761026775201,1.728,3864.5,3864.1,0.4521]
[1761026775407,1.75388058,3864.5,3864.0,0.2331]
[1761026776009,0.1288,3864.1,3864.0,0.2331]
[1761026777890,0.1288,3864.1,3864.0,2.82109171]
[1761026778075,0.1288,3864.1,3864.0,3.29419171]
[1761026779276,3.318,3864.9,3864.0,1.36552143]
[1761026779494,0.1288,3864.5,3864.4,2.58772383]
[1761026779825,0.099,3865.4,3864.1,0.4731]
[1761026779826,0.1288,3865.1,3865.0,2.58732212]
[1761026780120,0.53461801,3865.1,3865.0,2.58732212]
[1761026780290,0.1288,3865.1,3865.0,3.06042212]
[1761026780613,0.2485,3866.1,3865.0,3.06042212]
[1761026780614,0.1498,3866.0,3865.4,2.58700572]
[1761026780817,3.317,3865.9,3865.3,2.58711811]
[1761026781021,3.317,3865.9,3865.1,3.29775518]
[1761026781022,3.317,3865.9,3865.4,2.58703858]
[1761026781671,3.317,3865.9,3865.3,2.58709874]
[1761026781898,0.02588058,3865.8,3865.3,2.58709874]
[1761026782305,0.02588058,3865.8,3865.4,2.58705432]
[1761026782617,3.317,3865.9,3865.4,2.58705432]
[1761026784296,3.317,3865.9,3865.5,0.49896987]
[1761026784495,0.50591965,3866.5,3865.5,0.49896987]
[1761026784703,1.728,3866.3,3865.5,0.4731]
[1761026785074,0.50591965,3866.5,3865.5,0.4731]
[1761026785279,0.1002,3866.4,3865.5,3.06004358]
[1761026785517,1.728,3866.3,3865.5,0.4731]
[1761026785677,1.728,3866.3,3865.5,3.06007342]
[1761026785881,1.728,3866.3,3865.6,2.58686478]
[1761026786087,1.728,3866.3,3865.5,3.06006894]
[1761026786306,0.02588058,3866.2,3865.5,3.06006894]
[1761026786509,0.12608058,3866.2,3865.1,0.7105]
[1761026786812,0.1002,3866.1,3865.2,2.5871821]
[1761026787006,0.02588058,3866.0,3865.2,2.5871821]
[1761026787206,3.315,3865.9,3865.2,2.5871821]
[1761026787409,0.02588058,3865.8,3865.3,2.58709778]
[1761026788123,0.02588058,3865.8,3865.2,2.58716556]
[1761026788320,0.02588058,3865.8,3865.1,3.29774764]
[1761026788486,0.02588058,3865.8,3865.3,2.58707727]
[1761026789512,0.12658058,3865.8,3865.1,0.2374]
[1761026789816,0.12658058,3865.8,3865.2,2.58717028]